[Event "51st Rilton Cup 2023-24"]
[Site "Stockholm"]
[Date "2023.12.27"]
[Round "1.11"]
[White "Anand, Batsukh"]
[Black "Sivuk, Vitaly"]
[Result "0-1"]
[ECO "A11"]
[WhiteElo "2263"]
[BlackElo "2490"]
[Annotator "TA"]
[PlyCount "166"]
[EventDate "2023.12.27"]
[EventType "swiss"]
[EventCountry "SWE"]
[SourceTitle "playchess.com"]
[Source "ChessBase"]
[SourceQuality "1"]
[TimeControl "40/5400+30:1800+30"]

{[%evp 17,166,16,16,20,14,6,17,5,26,23,20,0,0,-8,-22,-18,0,0,-5,-41,-43,-91,-10,-35,-44,-60,0,-82,-34,-48,-37,-37,0,0,0,0,0,0,0,-70,-79,-72,-86,-66,-82,-93,-63,-71,-52,-120,-123,-128,-124,-129,-131,-182,-169,-177,-173,-143,-8,-6,-8,-147,-139,-129,-129,-206,-206,-200,-206,-206,-200,-202,-193,-193,-187,-174,-172,-192,-185,-185,-91,-71,-32,-52,-52,-120,-52,-66,-66,-66,-66,-66,-66,-66,-66,-83,-99,-74,-74,-112,-74,-74,-80,-83,-77,-47,0,-77,-77,-183,-80,-81,-35,-84,-58,-83,-8,-8,-13,-8,0,-8,0,0,0,-29974,-29975,-29975,-29976,-29976,-29977,-29977,-29978,-29978,-29979,-29978,-29980,-29982,-29982,-29982,-29983,-29983,-29984,-29984,-29985,-29985,-29986,-29986,-29987]} 1. Nf3 {[%emt 0:00:03]} d5 {[%emt 0:00:15]} 2. g3 {[%emt 0:00:07]} Bg4 {[%emt 0:00:13]} 3. Bg2 {[%emt 0:00:08]} Nd7 {[%emt 0:00:08]} 4. c4 {[%emt 0:00:04]} e6 {[%emt 0:00:13]} 5. cxd5 {[%emt 0:00:21]} exd5 {[%emt 0:00:07]} 6. O-O {[%emt 0:01:05]} c6 {[%emt 0:00:29]} 7. d3 {[%emt 0:00:09]} Ngf6 {[%emt 0:00:19]} 8. Nc3 {[%emt 0:00:34]} Bc5 {[%emt 0:01:20]} 9. Qb3 {[%emt 0:00:17]} Bb6 {[%emt 0:00:49]} 10. Na4 {[%emt 0:01:10] A11: English Opening: 1...c6.} O-O {[%emt 0:00:13]} 11. h3 {[%emt 0:00:55]} Bxf3 {[%emt 0:06:57]} 12. Bxf3 {[%emt 0:00:09] The position is equal.} Re8 {[%emt 0:00:13]} 13. Nxb6 {[%emt 0:01:09]} axb6 {[%emt 0:00:14]} 14. Qc2 {[%emt 0:04:23]} d4 {[%emt 0:04:58]} 15. b4 {[%emt 0:06:39]} Ne5 {[%emt 0:04:39]} 16. Bg2 {[%emt 0:01:57] [#]} Qd6 $146 {[%emt 0:00:13]} (16... Nd5 $5 {[%cal Rd5b4]}) ({Predecessor:} 16... Nd5 17. Bd2 Qd6 18. Qb2 Nc7 19. a4 b5 20. a5 h6 21. Rac1 Re7 22. f4 Nd7 {1-0 Naroditsky,D (2621)-Dhulipalla,B (2441) Charlotte CCCSA op 2021 (1)}) 17. Bd2 {[%emt 0:00:53]} h5 {[%emt 0:00:41][%cal Oh5h4]} 18. h4 {[%emt 0:16:43][%cal Ob4b5]} (18. b5 $5 {[%cal Rb5c6]}) 18... Neg4 {[%emt 0:01:45]} 19. Bf3 {[%emt 0:08:39]} (19. Rae1 $15) 19... Nd5 {[%emt 0:06:20]} (19... Ne3 $1 $17 {[%cal Re3c2]} 20. fxe3 Qxg3+ 21. Bg2 Ng4) 20. Kg2 {[%emt 0:05:29]} (20. Qb3 $5) 20... Re6 {[%emt 0:12:25]} 21. Qb2 {[%emt 0:06:15]} Qe5 {[%emt 0:02:00]} (21... Rae8 $1 $15 22. Rae1 Nge3+ 23. Bxe3 (23. fxe3 $2 {loses.} Rg6 $19) 23... dxe3 24. Bxd5 exf2 25. Bxe6 fxe1=N+ 26. Rxe1 Qxe6) 22. Rg1 {[%emt 0:06:24]} (22. a4 $11 {keeps the balance.}) 22... Rae8 $17 {[%emt 0:01:29] ...Qf5 is the strong threat. Black is much more active.} 23. Rae1 $1 {[%emt 0:01:16]} b5 {[%emt 0:04:19]} 24. Qb3 {[%emt 0:00:28]} Rd8 {[%emt 0:13:07]} 25. a4 {[%emt 0:07:02]} bxa4 {[%emt 0:00:21]} 26. Qxa4 {[%emt 0:00:04]} Rg6 {[%emt 0:03:25][%cal Od5e3]} 27. Qa7 {[%emt 0:06:50]} b6 $40 {[%emt 0:06:50][%mdl 128] Black mounts an attack.} 28. Qa1 {[%emt 0:00:58] [#]} (28. Rc1 $11) 28... Nge3+ $1 $15 {[%emt 0:01:49] A dynamic duo of knights.} 29. Kh2 {[%emt 0:03:57]} Nc2 {[%emt 0:00:24][%csl LRa1,LRb4,LRe1][%mdl 64] Deflection, Double Attack} 30. Qb2 {[%emt 0:00:12]} Nxe1 {[%emt 0:00:10]} 31. Rxe1 {[%emt 0:00:03]} Re8 {[%emt 0:04:04]} 32. Rc1 {[%emt 0:00:17]} Ne3 {[%emt 0:04:50] White must now prevent ...Ng4+.} 33. Bxe3 {[%emt 0:03:21]} (33. Rg1 $15 Nd5 34. Rc1) 33... dxe3 $17 {[%emt 0:00:08][%mdl 64] Discovered Attack} 34. Qxe5 {[%emt 0:00:26]} Rxe5 {[%emt 0:00:28]} 35. fxe3 {[%emt 0:06:35]} Rxe3 $15 {[%emt 0:01:14][%mdl 4096] Endgame KRR-KRB} 36. Ra1 {[%emt 0:01:48]} (36. Rc2 $17) 36... Re5 $1 $19 {[%emt 0:01:54]} 37. Ra8+ {[%emt 0:04:48]} Kh7 {[%emt 0:00:09]} 38. d4 {[%emt 0:01:57]} Rb5 {[%emt 0:00:48]} (38... Re3 $17 {aiming for ...Rd6.} 39. Rb8 b5) 39. Be4 $1 $11 {[%emt 0:03:43]} Rxb4 {[%emt 0:03:37]} 40. Bxg6+ {[%emt 0:00:50]} (40. e3 $1 $11) 40... Kxg6 {[%emt 0:02:22] KR-KR} 41. Rc8 {[%emt 0:30:04]} Rc4 {[%emt 0:03:09][%cal Og6f5]} 42. Rb8 {[%emt 0:01:02]} (42. Kg2 $17) 42... Rxd4 $19 {[%emt 0:00:00]} 43. Rxb6 {[%emt 0:00:27]} Rc4 {[%emt 0:00:24]} 44. Kg2 {[%emt 0:00:00]} Kf5 {[%emt 0:00:00]} 45. Kf3 {[%emt 0:00:00]} g6 {[%emt 0:00:00]} 46. Rb7 {[%emt 0:00:00]} Rc3+ {[%emt 0:01:17]} 47. e3 {[%emt 0:00:00]} Ke6 {[%emt 0:00:14]} 48. Rc7 {[%emt 0:00:00]} Rc1 {[%emt 0:01:01]} 49. Ke2 {[%emt 0:00:00]} f6 {[%emt 0:01:38]} (49... c5 $19 50. Rc6+ Kf5) 50. Rg7 $17 {[%emt 0:00:00]} Rc5 {[%emt 0:03:58]} 51. Kf3 {[%emt 0:00:00]} Rf5+ {[%emt 0:01:13]} 52. Ke4 {[%emt 0:00:00]} (52. Ke2 $15) 52... Re5+ {[%emt 0:01:30]} (52... c5 $17 53. Rc7 Re5+ 54. Kf3 Kd6) 53. Kf3 {[%emt 0:00:00]} Kf5 {[%emt 0:03:18]} 54. Rc7 {[%emt 0:00:00]} Re6 {[%emt 0:00:20]} 55. Rg7 {[%emt 0:00:00]} Re4 {[%emt 0:08:26][%cal Be6e4,Be4c4,Bc4c3][%mdl 32]} 56. Rc7 {[%emt 0:00:00]} Rc4 {[%emt 0:00:16]} 57. Re7 {[%emt 0:00:00]} Rc3 {[%emt 0:00:34]} 58. Re8 {[%emt 0:00:00]} c5 {[%emt 0:03:19]} 59. Re7 {[%emt 0:00:00]} g5 {[%emt 0:02:33]} 60. hxg5 {[%emt 0:00:00]} fxg5 {[%emt 0:00:07]} 61. Rf7+ {[%emt 0:00:00]} Ke5 {[%emt 0:00:41]} 62. Re7+ {[%emt 0:00:00]} Kf5 {[%emt 0:01:44]} 63. Rf7+ $1 {[%emt 0:00:00]} Kg6 $1 {[%emt 0:00:11]} 64. Rc7 {[%emt 0:00:00]} (64. Rf8 $17 {was worth a try.}) 64... Rc2 {[%emt 0:02:02]} (64... Rc1 $1 $19 {is more deadly. Strongly threatening ...c4.} 65. Rc8 c4 66. Rc6+ Kf7 67. Rc7+ Kf6 68. Rc6+ Kf7) 65. Rc8 {[%emt 0:00:49]} Kf5 {[%emt 0:03:05]} (65... Rc1 $17 {...c4 would be deadly.} 66. Rc7 c4 67. Rc6+ Kf7 68. Rc7+ Ke6) 66. Rf8+ $15 {[%emt 0:00:43]} Ke5 {[%emt 0:00:28][%csl Gh5][%cal Rg5g4]} 67. Re8+ $1 {[%emt 0:00:51] [#]} Kd5 {[%emt 0:00:10]} (67... Kd6 $1 $17) 68. g4 $1 $11 {[%emt 0:06:56]} h4 {[%emt 0:04:59]} 69. Rg8 {[%emt 0:00:06]} h3 {[%emt 0:00:05]} 70. Rxg5+ {[%emt 0:00:07]} Ke6 {[%emt 0:00:10]} 71. Rh5 {[%emt 0:00:04]} h2 {[%emt 0:00:05] ( -> ...c4)} 72. Ke4 $2 {[%emt 0:00:11][%mdl 8192] [#]} (72. Rh6+ $11 Ke5 73. Rh5+ Kf6 74. e4) 72... Rd2 $1 {[%emt 0:00:15] Black mates.} 73. Kf3 {[%emt 0:04:55]} c4 {[%emt 0:00:18]} 74. e4 {[%emt 0:00:03]} c3 {[%emt 0:00:25]} 75. Ke3 {[%emt 0:00:03]} Rg2 {[%emt 0:00:37]} 76. Kf3 {[%emt 0:00:22]} Ra2 {[%emt 0:00:46]} 77. Ke3 {[%emt 0:01:59]} c2 {[%emt 0:00:19]} 78. Kd2 {[%emt 0:00:05] [#]} c1=Q+ $1 {[%emt 0:00:09][%mdl 576] Promotion} 79. Kxc1 {[%emt 0:00:03] [#]} h1=Q+ $1 {[%emt 0:00:12][%mdl 512]} 80. Rxh1 {[%emt 0:00:03]} Ra1+ {[%emt 0:00:04][%mdl 64] Skewer} 81. Kd2 {[%emt 0:00:03]} Rxh1 {[%emt 0:00:05]} 82. Ke3 {[%emt 0:00:02]} Ke5 {[%emt 0:00:07]} 83. g5 {[%emt 0:00:03]} Rg1 {[%emt 0:00:05] Weighted Error Value: White=0.17 (very precise) /Black=0.16 (very precise)} 0-1

[Event "51st Rilton Cup 2023-24"]
[Site "Stockholm"]
[Date "2023.12.27"]
[Round "1.12"]
[White "Kaasen, Tor Fredrik"]
[Black "Bellon Lopez, Juan Manuel"]
[Result "1/2-1/2"]
[ECO "A57"]
[WhiteElo "2473"]
[BlackElo "2260"]
[Annotator "TA"]
[PlyCount "77"]
[EventDate "2023.12.27"]
[EventType "swiss"]
[EventCountry "SWE"]
[SourceTitle "playchess.com"]
[Source "ChessBase"]
[SourceQuality "1"]
[TimeControl "40/5400+30:1800+30"]

{[%evp 15,77,40,75,42,98,94,118,104,108,108,108,104,105,100,111,105,145,141,142,54,112,104,101,100,85,16,26,26,34,0,0,0,0,0,0,0,0,0,0,0,0,0,0,0,54,0,0,0,0,0,0,0,0,0,0,0,0,0,0,0,0,0,0,0]} 1. d4 {[%emt 0:00:12]} Nf6 {[%emt 0:00:12]} 2. c4 {[%emt 0:00:31]} c5 {[%emt 0:00:15]} 3. d5 {[%emt 0:00:57]} b5 {[%emt 0:00:25]} 4. cxb5 {[%emt 0:00:43]} a6 {[%emt 0:00:19]} 5. e3 {[%emt 0:01:02]} g6 {[%emt 0:00:55]} 6. Nc3 {[%emt 0:00:46]} Bg7 {[%emt 0:00:15]} 7. a4 {[%emt 0:00:54]} O-O {[%emt 0:00:23]} 8. Nf3 {[%emt 0:00:52]} d6 {[%emt 0:00:08]} 9. Bd2 {[%emt 0:01:58] A57: Benko/Volga Gambit.} Ne8 {[%emt 0:00:33]} (9... e6 $14) 10. Be2 {[%emt 0:03:08]} Nd7 {[%emt 0:00:10]} 11. O-O {[%emt 0:02:18] White is better.} Nc7 {[%emt 0:00:02]} 12. e4 {[%emt 0:02:06] [#]} Rb8 $146 {[%emt 0:00:15]} ({Predecessor:} 12... axb5 13. axb5 Rb8 14. Qb3 Nb6 15. Ra7 Bd7 16. Rfa1 Nc8 17. R7a5 Qe8 18. Be3 Kh8 {1-0 Izzat,K (2454)-Kasparov,S (2470) Australian op 2017 (11)}) 13. Re1 {[%emt 0:13:28]} axb5 {[%emt 0:04:11]} 14. axb5 {[%emt 0:01:07]} Nb6 {[%emt 0:00:38][%cal Bd7b6,Bb6c8,Bc8d6][%mdl 32]} 15. Qc1 {[%emt 0:03:09]} Bd7 {[%emt 0:08:06]} 16. Bh6 {[%emt 0:10:10]} Nc8 {[%emt 0:04:02][%cal Rc7b5] [#]} 17. e5 {[%emt 0:08:47] White is more active.} Bg4 {[%emt 0:20:28]} (17... Bxb5 $14 18. Bxg7 Kxg7) 18. exd6 {[%emt 0:20:05]} exd6 {[%emt 0:00:20]} 19. Bxg7 {[%emt 0:00:11]} Kxg7 {[%emt 0:00:23] [#]} 20. Ne5 {[%emt 0:00:32]} dxe5 $11 {[%emt 0:01:13]} (20... Bxe2 $2 21. Nc6 Qh4 22. Nxb8 $18) 21. Bxg4 {[%emt 0:00:13]} Nd6 $1 {[%emt 0:08:16]} 22. Be2 {[%emt 0:09:14]} Re8 {[%emt 0:06:38]} 23. Qe3 {[%emt 0:10:56]} Ncxb5 {[%emt 0:04:39]} 24. Bxb5 {[%emt 0:02:35]} Nxb5 {[%emt 0:00:06]} 25. Qxc5 {[%emt 0:02:07]} Nxc3 {[%emt 0:20:22]} 26. bxc3 {[%emt 0:00:17]} Rc8 {[%emt 0:00:07]} 27. Qb5 {[%emt 0:00:35]} Rxc3 {[%emt 0:00:02]} 28. d6 {[%emt 0:00:48] Black must now prevent d7.} Qb8 {[%emt 0:11:30]} 29. Qd5 {[%emt 0:01:28] Hoping for Rad1.} Rc2 {[%emt 0:01:49]} (29... Rb3 $1 $11) 30. h4 {[%emt 0:02:30]} (30. Rxe5 $2 {perishes.} Qb2 31. Ree1 (31. Rxe8 $2 {gets mated.} Qxa1+) 31... Rce2 $19) (30. d7 Rd8 $11) (30. Rac1 $14 Rxc1 31. Rxc1) 30... Qb6 {[%emt 0:01:24] The position is equal.} 31. Re3 {[%emt 0:00:19]} (31. Rxe5 $2 {too greedy.} Qxf2+ 32. Kh1 Rec8 $19) 31... Qc5 {[%emt 0:01:21]} 32. Qxc5 {[%emt 0:01:32]} Rxc5 {[%emt 0:00:04][%mdl 4096] Endgame KRR-KRR} 33. Ra7 {[%emt 0:00:05]} e4 {[%emt 0:03:29]} 34. Rb3 {[%emt 0:01:23]} Rd8 {[%emt 0:02:01]} 35. Rbb7 {[%emt 0:00:19]} Rf5 {[%emt 0:00:05]} 36. Rd7 {[%emt 0:00:33]} Rxd7 {[%emt 0:00:58]} 37. Rxd7 {[%emt 0:00:02]} Rd5 {[%emt 0:00:15]} 38. Re7 {[%emt 0:00:55]} Rxd6 {[%emt 0:00:08]} 39. Rxe4 {[%emt 0:00:06] Weighted Error Value: White=0.13 (very precise) /Black=0.10 (very precise)} 1/2-1/2

[Event "51st Rilton Cup 2023-24"]
[Site "Stockholm"]
[Date "2023.12.27"]
[Round "1.13"]
[White "Wiebe, Patrick"]
[Black "Costa, Leonardo"]
[Result "0-1"]
[ECO "A13"]
[WhiteElo "2254"]
[BlackElo "2472"]
[Annotator "TA"]
[PlyCount "88"]
[EventDate "2023.12.27"]
[EventType "swiss"]
[EventCountry "SWE"]
[SourceTitle "playchess.com"]
[Source "ChessBase"]
[SourceQuality "1"]
[TimeControl "40/5400+30:1800+30"]

{[%evp 10,88,0,-8,0,-24,-27,-15,-6,-20,-14,-8,-16,-44,0,0,0,-32,-32,-32,-26,-22,-25,-46,-33,-36,-25,-35,-20,-20,-29,-21,-22,-19,-36,-110,-102,-77,-73,-70,-65,-127,-125,-111,-118,-122,-122,-187,-6,-454,-93,-118,-93,-261,-261,-221,0,0,0,0,0,0,0,0,12833,-618,-601,-609,-18,-8931,-5639,-1669,-1018,-12837,-12838,-12838,-12839,-29983,-29984,-29983,-29984]} 1. c4 {[%emt 0:00:02]} Nf6 {[%emt 0:00:05]} 2. g3 {[%emt 0:00:07]} e6 {[%emt 0:00:06]} 3. Bg2 {[%emt 0:00:17]} d5 {[%emt 0:00:04]} 4. Nf3 {[%emt 0:00:48]} dxc4 {[%emt 0:00:11]} 5. Na3 {[%emt 0:00:08]} Bxa3 {[%emt 0:00:06]} 6. bxa3 {[%emt 0:00:05] White is weak on the light squares} b5 {[%emt 0:00:04] was the old line (6...0-0). A13: English Opening: 1...e6.} 7. Bb2 {[%emt 0:10:17]} Bb7 {[%emt 0:04:11]} 8. O-O {[%emt 0:00:19]} Nbd7 {[%emt 0:16:13] The position is equal.} 9. a4 {[%emt 0:02:41]} a6 {[%emt 0:04:47]} 10. axb5 {[%emt 0:05:18]} axb5 {[%emt 0:00:05]} 11. a4 {[%emt 0:00:07]} bxa4 {[%emt 0:06:42]} 12. Rxa4 {[%emt 0:02:52]} Bd5 {[%emt 0:00:03] [#]} 13. Nd4 $146 {[%emt 0:32:31]} ({Predecessor:} 13. Ne5 Bxg2 14. Kxg2 Nxe5 15. Bxe5 O-O 16. Bxf6 gxf6 17. Rxa8 Qd5+ 18. Kg1 Rxa8 19. Qc2 {0-1 Wolfsteiner,H (2271)-Teske,H (2486) Augsburg Afro op 2001 (7)}) 13... Bxg2 {[%emt 0:05:06]} 14. Kxg2 {[%emt 0:01:48]} Nb6 {[%emt 0:00:07]} 15. Rxa8 {[%emt 0:04:40]} Qxa8+ {[%emt 0:00:04]} 16. f3 {[%emt 0:00:34]} O-O {[%emt 0:01:09]} 17. Qc2 {[%emt 0:00:29]} Qd5 {[%emt 0:25:13]} 18. Ra1 {[%emt 0:05:51]} Rd8 {[%emt 0:00:11]} 19. Bc3 {[%emt 0:01:12]} Qd7 {[%emt 0:05:00] ...c5 is the strong threat.} 20. e4 {[%emt 0:08:06]} Ne8 {[%emt 0:00:15]} 21. Ra5 {[%emt 0:02:37]} Nd6 {[%emt 0:01:46]} 22. Rg5 {[%emt 0:09:40]} (22. Qb1 $15) 22... f6 $17 {[%emt 0:01:44]} 23. Ra5 {[%emt 0:00:08]} Nb7 $36 {[%emt 0:08:12][%mdl 2048] Black is really pushing.} 24. Ra7 {[%emt 0:01:10]} Nc5 {[%emt 0:00:03]} 25. Ne2 {[%emt 0:03:26]} (25. Qb2 $15) 25... e5 {[%emt 0:05:55]} 26. Ba5 {[%emt 0:01:43] Strongly threatening Bxb6.} Qb5 {[%emt 0:02:34]} 27. Nc3 {[%emt 0:03:58] [#]} Qb3 {[%emt 0:00:05] Black is more active.} 28. Qa2 {[%emt 0:01:33]} (28. Qc1 $17) 28... Nca4 $2 {[%emt 0:08:06]} (28... Nba4 $19 {aiming for ...Rd3.} 29. Kh3 h5 30. Rxc7 Rd3 31. Qxb3 (31. Rc8+ $2 Kh7 $17) 31... cxb3) 29. Kh3 $2 {[%emt 0:00:47][%mdl 8192] [#]} (29. Rxc7 $11 Rd3 30. Qxb3 cxb3 31. Nb1) 29... Rd7 $2 {[%emt 0:02:43]} (29... Nxc3 $1 $19 {and Black stays clearly on top.} 30. Qxb3 {[%mdl 64] Remove Defender} cxb3 31. Bxc3 Rxd2 32. Rxc7 (32. Bxd2 $2 b2 $19) 32... b2 33. Bxb2 Rxb2) 30. Qa1 {[%emt 0:01:02]} h5 {[%emt 0:02:55]} (30... Rxd2 $6 31. Bxb6 (31. Rxc7 Nxc3 32. Bxc3 Ra2 $17) (31. Nxa4 $2 Ra2 $19) 31... Nxb6 32. Rxc7 $11) 31. Qf1 $2 {[%emt 0:00:43]} (31. Bxb6 $17 Nxb6 32. Qe1) 31... Rxd2 $19 {[%emt 0:01:06]} 32. Nxa4 {[%emt 0:00:19]} Rd1 {[%emt 0:00:51]} (32... Qxa4 $19 33. Bxb6 Qd7+ 34. g4 hxg4+ 35. Kg3 Rd3 36. Rxc7 Qd6 37. Rc8+ (37. Rxc4 $2 Rxf3+ $19) 37... Kh7) 33. Qe2 $11 {[%emt 0:00:32]} Nxa4 {[%emt 0:00:05]} 34. Ra8+ {[%emt 0:00:28]} (34. f4 $5 g6 $8 35. fxe5 $11) 34... Kh7 {[%emt 0:01:04]} (34... Kf7 $5 35. f4 $8 g6 $11) 35. f4 $1 {[%emt 0:00:03][%cal Re2h5]} g6 {[%emt 0:00:24]} (35... exf4 $2 36. Qxh5#) 36. f5 {[%emt 0:00:22] White threatens fxg6+ and mate.} c3 $2 {[%emt 0:00:09][%mdl 8192]} (36... Rd4 $11 37. fxg6+ Kxg6 38. Rg8+ (38. Bxc7 c3 $17) (38. Rh8 $2 Qd1 $19) 38... Kh7 39. Qxh5+ (39. Rc8 Kg6 $11) 39... Kxg8 40. Qg6+ Kh8 41. Qxf6+ Kh7) 37. Rc8 $4 {[%emt 0:01:30][%mdl 8192]} (37. fxg6+ $18 Kxg6 38. Kh4 (38. Bxc7 $2 {loses.} Rd2 $19) (38. Rh8 $2 Qe6+ 39. Kh4 Qg4+ 40. Qxg4+ hxg4 $19)) 37... Rd7 $19 {[%emt 0:00:33]} 38. Qf3 {[%emt 0:00:34] Hoping for fxg6+.} Kg7 {[%emt 0:00:45]} (38... Qf7 $19 39. fxg6+ Qxg6 40. Bxc7 Nc5) 39. Rxc7 $2 {[%emt 0:00:38][%mdl 8192]} (39. Bb4 $11 c5 40. Bxc5 Nxc5 41. Rxc5) 39... Rxc7 {[%emt 0:00:17]} 40. Bxc7 {[%emt 0:00:04]} Qc4 {[%emt 0:00:50]} 41. fxg6 {[%emt 0:05:56]} Qxc7 {[%emt 0:02:32]} 42. Qxh5 {[%emt 0:00:10]} Kg8 {[%emt 0:03:25] ( -> ...c2)} 43. Qd1 {[%emt 0:05:54]} c2 {[%emt 0:00:29]} 44. Qc1 {[%emt 0:00:06] [#]} Nb2 $1 {[%emt 0:02:00][%mdl 576] Promotion.   Weighted Error Value: White=0.86/Black=0.58} 0-1

[Event "51st Rilton Cup 2023-24"]
[Site "Stockholm"]
[Date "2023.12.27"]
[Round "1.14"]
[White "Rozentalis, Eduardas"]
[Black "Acikel, Mert"]
[Result "1/2-1/2"]
[ECO "C68"]
[WhiteElo "2454"]
[BlackElo "2253"]
[Annotator "RC"]
[PlyCount "65"]
[EventDate "2023.12.27"]
[EventType "swiss"]
[EventCountry "SWE"]
[SourceTitle "playchess.com"]
[Source "ChessBase"]
[SourceQuality "1"]
[TimeControl "40/5400+30:1800+30"]

1. e4 {[%emt 4:34:33]} e5 {[%emt 0:00:12]} 2. Nf3 {[%emt 0:00:29]} Nc6 {[%emt 0:00:14]} 3. Bb5 {[%emt 0:00:32]} a6 {[%emt 0:00:26]} 4. Bxc6 {[%emt 0:00:13]} dxc6 {[%emt 0:00:06]} 5. d3 {[%emt 0:00:38]} Qf6 {[%emt 0:01:38]} 6. Bg5 Qg6 {[%emt 0:07:37]} 7. h4 {[%emt 0:00:17]} f6 {[%emt 0:00:25]} 8. h5 {[%emt 0:00:15]} Qf7 {[%emt 0:00:12]} 9. Be3 {[%emt 0:10:58]} Bd7 {[%emt 0:02:20]} 10. a3 {[%emt 0:00:04]} O-O-O {[%emt 0:05:04]} 11. Nc3 {[%emt 0:01:21]} Nh6 {[%emt 0:05:09]} 12. Bxh6 {[%emt 0:04:24]} gxh6 {[%emt 0:00:08]} 13. Ne2 {[%emt 0:01:11]} Bg4 {[%emt 0:04:28]} 14. Ng3 {[%emt 0:00:48]} Rg8 {[%emt 0:02:48]} 15. Qd2 {[%emt 0:02:51]} c5 {[%emt 0:04:02]} 16. c4 {[%emt 0:04:39]} f5 {[%emt 0:09:09]} 17. Nxe5 {[%emt 0:03:35]} Qe6 {[%emt 0:05:20]} 18. Nxg4 {[%emt 0:06:57]} Rxg4 {[%emt 0:01:04]} 19. O-O-O {[%emt 0:01:52]} fxe4 {[%emt 0:01:05]} 20. Rhe1 {[%emt 0:01:10]} Bd6 {[%emt 0:07:03]} 21. Qe2 {[%emt 0:08:25]} Bxg3 {[%emt 0:06:05]} 22. fxg3 {[%emt 0:00:19]} Rd4 {[%emt 0:10:52]} 23. Qf2 {[%emt 0:05:44]} b6 {[%emt 0:04:38]} 24. Re3 {[%emt 0:04:54]} Qd7 {[%emt 0:04:26]} 25. Qe2 {[%emt 0:02:36]} Qe6 {[%emt 0:11:20]} 26. Qf1 {[%emt 0:10:07]} Qg8 {[%emt 0:03:03]} 27. Kb1 {[%emt 0:09:14]} Rxd3 {[%emt 0:02:24]} 28. Rdxd3 {[%emt 0:02:11]} exd3 {[%emt 0:00:04]} 29. Qf3 {[%emt 0:00:19]} Qxc4 {[%emt 0:01:14]} 30. Re7 {[%emt 0:11:04]} Qc2+ {[%emt 0:00:17]} 31. Ka2 {[%emt 0:00:05]} Qc4+ {[%emt 0:00:04]} 32. Ka1 {[%emt 0:00:23]} Qc1+ {[%emt 0:00:04]} 33. Ka2 {[%emt 0:00:04]} 1/2-1/2

[Event "51st Rilton Cup 2023-24"]
[Site "Stockholm"]
[Date "2023.12.27"]
[Round "1.15"]
[White "Eriksson, Dan"]
[Black "Chasin, Nico"]
[Result "0-1"]
[ECO "C02"]
[WhiteElo "2253"]
[BlackElo "2444"]
[Annotator "RC"]
[PlyCount "50"]
[EventDate "2023.12.27"]
[EventType "swiss"]
[EventCountry "SWE"]
[SourceTitle "playchess.com"]
[Source "ChessBase"]
[SourceQuality "1"]
[TimeControl "40/5400+30:1800+30"]

1. e4 {[%emt 0:00:07]} e6 {[%emt 0:00:29]} 2. d4 {[%emt 0:00:14]} d5 {[%emt 0:00:06]} 3. e5 {[%emt 0:00:35]} c5 {[%emt 0:00:08]} 4. c3 {[%emt 0:00:04]} Nc6 {[%emt 0:00:06]} 5. Nf3 {[%emt 0:00:12]} Qb6 {[%emt 0:00:19]} 6. a3 {[%emt 0:03:38]} Nh6 {[%emt 0:01:01]} 7. b4 {[%emt 0:01:35]} cxd4 {[%emt 0:00:29]} 8. cxd4 {[%emt 0:00:09]} Nf5 {[%emt 0:00:07]} 9. Be3 {[%emt 0:01:59]} f6 {[%emt 0:00:09]} 10. exf6 {[%emt 0:06:00]} gxf6 {[%emt 0:00:16]} 11. Bd3 {[%emt 0:02:52]} Nxe3 {[%emt 0:03:59]} 12. fxe3 {[%emt 0:00:06]} Bh6 {[%emt 0:00:20]} 13. b5 {[%emt 0:14:29]} Na5 {[%emt 0:00:54]} 14. Ne5 {[%emt 0:01:21]} Bxe3 {[%emt 0:01:58]} 15. Qh5+ {[%emt 0:00:41]} Kd8 {[%emt 0:00:17]} 16. Nf7+ {[%emt 0:03:22]} Kc7 {[%emt 0:00:08]} 17. Nxh8 {[%emt 0:00:18]} Qxd4 {[%emt 0:01:09]} 18. Qxh7+ {[%emt 0:09:07]} Bd7 {[%emt 0:02:10]} 19. Ra2 {[%emt 0:00:15]} Rxh8 {[%emt 0:00:15]} 20. Qxh8 {[%emt 0:02:27]} Qxd3 {[%emt 0:00:08]} 21. Nd2 {[%emt 0:05:05]} Bxb5 {[%emt 0:00:25]} 22. Qg7+ {[%emt 0:00:38]} Kb6 {[%emt 0:01:49]} 23. Qg4 {[%emt 0:00:09]} Nb3 {[%emt 0:02:00]} 24. Qd1 {[%emt 0:04:53]} d4 {[%emt 0:19:51]} 25. Nxb3 {[%emt 0:10:09]} Qc3+ {[%emt 0:00:03]} 0-1